fUSD/lending_fUSD_20250401
["ID","MTS","AMOUNT","RATE_DAILY","PERIOD"]
[356960248,1743495063273,-772.7,0.00057534,120]
[356960249,1743495063283,-500.0,0.00057534,120]
[356960250,1743495063294,-553.59063356,0.00057534,120]
[356960251,1743495063304,-500.0,0.00057534,120]
[356960252,1743495063316,-500.0,0.00057534,120]
[356960253,1743495063326,-500.0,0.00057534,120]
[356960254,1743495063337,-500.0,0.00057534,7]
[356960255,1743495063348,-500.0,0.00057534,120]
[356960256,1743495063359,-500.0,0.00057534,120]
[356960257,1743495063369,-500.0,0.00057534,120]
[356960258,1743495063379,-802.02,0.00057534,120]
[356960259,1743495063391,-305.45325651,0.00057534,120]
[356960260,1743495063401,-500.0,0.00057534,120]
[356960261,1743495063412,-157.43179777,0.00057534,120]
[356960262,1743495063423,-500.0,0.00057534,120]
[356960263,1743495063433,-500.0,0.00057534,120]
[356960264,1743495063443,-500.0,0.00057534,120]
[356960265,1743495063452,-558.07,0.00057534,120]
[356960266,1743495063462,-500.0,0.00057534,120]
[356960267,1743495063471,-500.0,0.00057534,120]
[356960268,1743495063481,-500.0,0.00057534,120]
[356960269,1743495063493,-500.0,0.00057534,120]
[356960270,1743495063504,-500.0,0.00057534,120]
[356960271,1743495063515,-500.0,0.00057534,120]
[356960272,1743495063525,-500.0,0.00057534,120]
[356960273,1743495063535,-500.0,0.00057534,120]
[356960274,1743495063546,-562.05,0.00057534,120]
[356960275,1743495063555,-500.0,0.00057534,120]
[356960276,1743495063565,-2934.77,0.00057534,120]
[356960277,1743495063590,-688.22,0.00057534,120]
[356960278,1743495063601,-500.0,0.00057534,120]
[356960279,1743495063611,-500.0,0.00057534,120]
[356960280,1743495063621,-500.0,0.00057534,120]
[356960281,1743495063632,-500.0,0.00057534,120]
[356960282,1743495063642,-500.0,0.00057534,120]
[356960283,1743495063653,-500.0,0.00057534,120]
[356960284,1743495063664,-83825.4,0.00057534,7]
[356960285,1743495063675,-527.94168728,0.00057534,120]
[356960286,1743495063688,-500.0,0.00057534,120]
[356960287,1743495063701,-1791.05,0.00057534,2]
[356960288,1743495063712,-500.0,0.00057534,120]
[356960289,1743495063723,-500.0,0.00057534,120]
[356960290,1743495063734,-500.0,0.00057534,120]
[356960291,1743495063745,-500.0,0.00057534,120]
[356960292,1743495063755,-476.16330577,0.00057534,120]
[356960293,1743495063766,-500.0,0.00057534,120]
[356960294,1743495063777,-500.0,0.00057534,120]
[356960295,1743495063787,-500.0,0.00057534,2]
[356960296,1743495063797,-535.66,0.00057534,120]
[356960297,1743495063808,-500.0,0.00057534,120]
[356960298,1743495063818,-500.0,0.00057534,120]
[356960299,1743495063829,-500.0,0.00057534,120]
[356960300,1743495063838,-500.0,0.00057534,120]
[356960301,1743495063848,-500.0,0.00057534,7]
[356960302,1743495063857,-500.0,0.00057534,120]
[356960303,1743495063869,-500.0,0.00057534,120]
[356960304,1743495063880,-500.0,0.00057534,120]
[356960305,1743495063890,-151.15,0.00057562,120]
[356960306,1743495063900,-367.0,0.00057784,30]
[356960307,1743495063911,-3645.45,0.000579,2]
[356960308,1743495063920,-3070.4438273,0.0005796,2]
[356960309,1743495063931,-1165.5171157,0.0005796,2]
[356960310,1743495063941,-4319.67386769,0.00057982,15]
[356960311,1743495063951,-2188.836128,0.00057982,15]
[356960312,1743495063961,-1228.27305136,0.00057989,120]
[356960313,1743495063971,-50000.0,0.00058,58]
[356960314,1743495063981,-250000.0,0.00058,120]
[356960315,1743495063991,-314.65136172,0.00058,120]
[356960316,1743495064001,-186062.58503059,0.00058,120]
[356960317,1743495064311,-151.0,0.00034091,7]
[356960318,1743495064322,-151.0,0.00034091,7]
[356960319,1743495064333,-151.0,0.00041,14]
[356960320,1743495064345,-158.427219,0.00041,14]
[356960321,1743495064356,-151.0,0.00042647,14]
[356960322,1743495064368,-151.0,0.00048,14]
[356960323,1743495064380,-2572.02,0.00055342,120]
[356960324,1743495064391,-64.95776031,0.0005589,120]
[356960325,1743495064425,-151.0,0.0004888,14]
[356960326,1743495064436,-287.02540688,0.0005589,120]
[356960327,1743495064987,-151.0,0.00034091,7]
[356960328,1743495064997,-2220.03683281,0.0005589,120]
[356960329,1743495065007,-2353.57265959,0.00056438,120]
[356960330,1743495065020,-218.44734041,0.00056438,120]
[356960331,1743495065029,-119.14266109,0.00056986,120]
[356960332,1743495065041,-1629.13565916,0.00056986,120]
[356960333,1743495065147,150.0,0.00034091,30]
[356960334,1743495065188,-151.0,0.00041,14]
[356960335,1743495065199,-151.0,0.00042647,14]
[356960336,1743495065209,-151.0,0.00048,14]
[356960337,1743495065220,-151.0,0.0004888,14]
[356960338,1743495065229,-151.0,0.00049856,120]
[356960339,1743495065239,-154.41572167,0.000499,120]
[356960340,1743495065250,-823.74167975,0.00056986,120]
[356960341,1743495065261,-500.0,0.00057534,100]
[356960342,1743495065272,-500.0,0.00057534,120]
[356960343,1743495065281,-2572.02,0.00057534,120]
[356960344,1743495065291,-3065.627318,0.00058,120]
[356960345,1743495065311,-151.0,0.0004986,120]
[356960346,1743495065320,-1055.28506003,0.00058,120]
[356960347,1743495065459,-700.20276168,0.00058,120]
[356960348,1743495065475,-6008.8843838,0.00058,120]
[356960351,1743495074496,150.0,0.00034091,30]
[356960379,1743495377004,2224.7,0.0001486,2]
[356960380,1743495936783,221.15852275,8e-05,2]
[356960383,1743495955839,-2811.73562169,0.0001489,2]
[356960405,1743496141418,-1017.50561038,0.0001489,2]
[356960406,1743496141455,-150.98995775,0.00014899,2]
[356960407,1743496141485,-477.93630292,0.000149,2]
[356960415,1743496191121,-522.06369708,0.000149,2]
[356960416,1743496191155,-326.5044,0.000149,2]
[356960417,1743496191184,-199.94601256,0.000149,2]
[356960418,1743496202762,350.0,0.00014949,12]
[356960446,1743496232514,-1288.49999998,0.000149,2]
[356960447,1743496232527,-466.94781577,0.000149,2]
[356960448,1743496232539,-1076.29797169,0.000149,2]
[356960449,1743496232548,-1000.0,0.000149,2]
[356960450,1743496232558,-3884.89,0.0001499,2]
[356960451,1743496232568,-868.08361754,0.00014999,2]
[356960452,1743496232578,-150.0,0.00014999,2]
[356960453,1743496232587,-76919.79028301,0.00015,2]
[356960454,1743496232602,-22888.09839554,0.00015,2]
[356960455,1743496232662,307.601026,0.00014825,2]
[356960479,1743496238153,-97953.54726356,0.00015,2]
[356960480,1743496238214,-310.09638203,0.00015,2]
[356960481,1743496238274,-4070.42433121,0.00015,2]
[356960482,1743496238286,-20013.72749999,0.00015,2]
[356960483,1743496238331,-289.07762406,0.00015,2]
[356960484,1743496238346,-442.20931429,0.00015,2]
[356960485,1743496238385,-266.82954444,0.00015,2]
[356960613,1743496240623,-346.77735145,0.00015,2]
[356960614,1743496240634,-419.1234596,0.00015,2]
[356960621,1743496242486,-0.0322605,0.00015,2]
[356960622,1743496242498,-769.23210862,0.00015,2]
[356960652,1743496243245,-3267.19134556,0.00015,2]
[356960675,1743496246246,-333.73894891,0.00015,2]
[356960676,1743496246257,-7663.4755754,0.00015,2]
[356960677,1743496246460,-3786.5784826,0.00015,2]
[356960678,1743496246472,-470.505552,0.00015,2]
[356960679,1743496246484,-534.27599922,0.00015,2]
[356960680,1743496246514,-25172.4470444,0.00015,2]
[356960683,1743496261971,807.53131285,0.0001485,2]
[356960685,1743496283322,-218.36395758,0.000149,2]
[356960688,1743496291463,-150.02065061,0.000149,2]
[356960691,1743496313384,218.36395758,0.000148,2]
[356960701,1743496483391,500.0,0.00034128,120]
[356960707,1743496561908,350.0,0.00014949,12]
[356960716,1743496663558,-201.0,0.00014999,2]
[356960717,1743496663600,-75.0,0.00015,2]
[356960718,1743496682434,-599.0,0.00015,2]
[356960720,1743497044959,226.55212605,0.00015,13]
[356960729,1743497432506,-547.10656,0.00015,2]
[356960730,1743497432518,-631.14,0.00015,2]
[356960731,1743497432529,-261.36076216,0.00015,2]
[356960732,1743497432586,-34339.43537778,0.00015,2]
[356960733,1743497432598,-407.66361362,0.00015,2]
[356960734,1743497432613,-350.0,0.00015174,12]
[356960735,1743497432622,-350.0,0.000165,12]
[356960736,1743497432632,-9.95288138,0.00016511,12]
[356960737,1743497432644,-340.04711862,0.00016511,12]
[356960738,1743497432653,-250.0,0.00017,2]
[356960739,1743497432662,-305.67013173,0.00018706,2]
[356960740,1743497432673,-300.0,0.00019,2]
[356960741,1743497432682,-350.0,0.00021,2]
[356960742,1743497432692,-6440.08973708,0.0002299,2]
[356960743,1743497432702,-400.0,0.00023,2]
[356960744,1743497432711,-869.0,0.00023998,2]
[356960745,1743497432722,-204.12079195,0.00023998,2]
[356960746,1743497432732,-1028.16,0.00023999,2]
[356960747,1743497432741,-548.6871739,0.00023999,2]
[356960748,1743497432753,-503.4735659,0.00023999,2]
[356960749,1743497432764,-310.31,0.00023999,2]
[356960750,1743497432780,-450.0,0.00023999,2]
[356960751,1743497432795,-240.2792602,0.00023999,2]
[356960752,1743497432805,-299.70614013,0.00023999,2]
[356960798,1743497438451,-1260.72984072,0.00023999,2]
[356960799,1743497438564,-7914.24666247,0.00023999,2]
[356960800,1743497438578,-525.30735668,0.00023999,2]
[356960801,1743497438589,-1070.43582045,0.00023999,2]
[356960804,1743497440504,-553.07631712,0.00023999,2]
[356960805,1743497440519,-655.48786243,0.00023999,2]
[356960806,1743497440530,-450.0,0.00025,2]
[356960807,1743497440539,-500.0,0.000255,2]
[356960808,1743497440550,-216.98004864,0.000267,2]
[356960809,1743497440559,-152.87,0.00026849,2]
[356960810,1743497440569,-164.93,0.00026849,2]
[356960811,1743497440579,-158.7,0.00026849,2]
[356960812,1743497440588,-500.0,0.00027,2]
[356960813,1743497440598,-171.925,0.00027984,18]
[356960814,1743497440608,-150.0,0.00028359,2]
[356960815,1743497440617,-264.0,0.00029,5]
[356960816,1743497440627,-150.0,0.00029534,2]
[356960817,1743497440637,-300.0,0.0003,7]
[356960818,1743497440646,-175.77,0.00031684,2]
[356960819,1743497440655,-44.76888899,0.0003243,2]
[356960820,1743497440672,-105.23111101,0.0003243,2]
[356960821,1743497440681,-158.99,0.00034643,2]
[356960822,1743497440691,-177.71888899,0.00034703,2]
[356960823,1743497440884,-207.95342112,0.00034703,2]
[356960824,1743497440894,-623.21814801,0.00035,2]
[356960846,1743497443408,-2239.95251677,0.00035,2]
[356960848,1743497443418,-4776.92522918,0.00035,40]
[356960849,1743497443428,-165.25,0.00035,2]
[356960850,1743497443437,-399.6804,0.000359,2]
[356960851,1743497443447,-413.55,0.000359,2]
[356960852,1743497443456,-268.3202,0.000359,2]
[356960853,1743497443465,-3904.667,0.000359,2]
[356960854,1743497443475,-314.2719,0.000359,2]
[356960855,1743497443484,-58842.73316705,0.00036,7]
[356960856,1743497443493,-261.11,0.0003736,120]
[356960857,1743497443506,-290.915,0.00037557,2]
[356960858,1743497443515,-9476.3314,0.00037557,2]
[356960859,1743497443525,-203.6918,0.00037557,2]
[356960860,1743497443534,-8525.3974297,0.00037657,2]
[356960861,1743497443553,-4967.77,0.00037657,2]
[356960899,1743497446252,-10406.8325703,0.00037657,2]
[356960901,1743497446262,-1071.93491341,0.00037763,2]
[356960903,1743497446271,-158.7,0.00037863,2]
[356960904,1743497446280,-312.42,0.0003789,2]
[356960905,1743497446290,-150.0,0.00038013,2]
[356960906,1743497446299,-166.778,0.00039519,2]
[356960907,1743497446308,-163.631,0.00039519,2]
[356960908,1743497446317,-150.859,0.00039519,2]
[356960909,1743497446327,-214.845,0.00039519,2]
[356960910,1743497446336,-299.466,0.00039519,2]
[356960911,1743497446345,-4474.0,0.000397,5]
[356960912,1743497446354,-7684.02440787,0.000399,2]
[356960913,1743497446366,-4000.0,0.000399,2]
[356960914,1743497446377,-303.83341824,0.000399,2]
[356960945,1743498631585,-250.0,0.00017,2]
[356960946,1743498631595,-350.0,0.000187,12]
[356960947,1743498631605,-350.0,0.00021662,12]
[356960948,1743498631614,-239.29554566,0.00026749,2]
[356960949,1743498631624,-21.68624036,0.00026849,2]
[356960950,1743498631637,-131.18375964,0.00026849,2]
[356960951,1743498631646,-239.29554565,0.00032775,2]
[356960952,1743498631656,-122.08718352,0.000335,2]
[356960953,1743498631669,-314.97000001,0.000335,2]
[356960954,1743498631680,-680.93533673,0.000335,2]
[356960955,1743498631693,-687.36351822,0.000335,2]
[356960956,1743498631704,-194.64396152,0.000335,2]
[356960957,1743498631714,-9701.0,0.00034257,2]
[356960958,1743498631724,-2000.0,0.000362,2]
[356960959,1743498631734,-299.99,0.000362,30]
[356960960,1743498631745,-300.0,0.00036515,2]
[356960961,1743498631756,-239.29554565,0.000388,2]
[356960962,1743498631765,-301.4598,0.000389,2]
[356960963,1743498631774,-726.57048794,0.00039,2]
[356960964,1743498631800,-654.42951206,0.00039,2]
[356960965,1743498631809,-171.926,0.00039771,55]
[356960966,1743498631819,-226.55212605,0.000399,66]
[356960967,1743498631828,-909.87302904,0.0004,2]
[356960979,1743498637476,-421.3930213,0.0004,2]
[356960980,1743498637487,-1865.50895554,0.0004,2]
[356960981,1743498637499,-4770.93213803,0.0004,2]
[356960982,1743498637508,-164.93,0.00040616,2]
[356960983,1743498637517,-1381.40648828,0.000417,2]
[356960984,1743498637526,-150.0,0.000423,2]
[356960985,1743498637535,-394.39,0.000444,7]
[356960986,1743498637544,-500.0,0.00045753,120]
[356960987,1743498637553,-487.21205882,0.000459,120]
[356960988,1743498637562,-500.0,0.00046427,120]
[356960989,1743498637571,-500.0,0.00046581,120]
[356960990,1743498637581,-359.35,0.00046602,2]
[356960991,1743498637591,-678.63451238,0.00047,2]
[356960992,1743498637600,-250.0,0.00047728,120]
[356960993,1743498637610,-150.0,0.00047895,2]
[356960994,1743498637620,-150.0,0.00047922,2]
[356960995,1743498637630,-500.0,0.0004794,120]
[356960996,1743498637639,-500.0,0.00047999,120]
[356960997,1743498637647,-231.83465444,0.00048055,2]
[356960998,1743498637659,-334.56314952,0.00048055,2]
[356960999,1743498637670,-433.60219604,0.00048055,2]
[356961000,1743498637680,-156.21,0.00048066,2]
[356961001,1743498637689,-160.94,0.00048085,2]
[356961002,1743498637698,-151.15,0.00048124,120]
[356961003,1743498637707,-9556.41,0.00048184,2]
[356961004,1743498637717,-500.0,0.00048499,120]
[356961005,1743498637726,-548.7374,0.000487,2]
[356961006,1743498637736,-197.06838826,0.00048712,120]
[356961007,1743498637746,-390.7773446,0.00048712,120]
[356961008,1743498637756,-23900.0,0.00048713,2]
[356961009,1743498637765,-813.94084,0.000488,120]
[356961010,1743498637773,-831.74164437,0.000488,120]
[356961011,1743498637783,-359.35,0.00048866,2]
[356961012,1743498637791,-158.7,0.00048877,2]
[356961013,1743498637800,-351.0,0.00049315,30]
[356961014,1743498637809,-166.585,0.00049363,30]
[356961015,1743498637818,-500.0,0.0004975,120]
[356961016,1743498637827,-307.85898454,0.0005,120]
[356961017,1743498637835,-500.0,0.00050499,120]
[356961018,1743498637845,-500.0,0.00050588,120]
[356961019,1743498637854,-359.35,0.00051129,2]
[356961020,1743498637863,-500.0,0.00051479,120]
[356961021,1743498637873,-167.4902408,0.00051644,120]
[356961022,1743498637886,-548.7374,0.00051697,120]
[356961023,1743498637895,-158.99,0.00051965,2]
[356961024,1743498637904,-167.4902408,0.00052219,120]
[356961025,1743498637914,-5007.71579534,0.00052417,120]
[356961026,1743498637923,-150.0,0.0005269,2]
[356961027,1743498637932,-4188.47683483,0.0005269,2]
[356961028,1743498637941,-150.0,0.0005269,2]
[356961029,1743498637950,-4177.42564721,0.0005269,2]
[356961030,1743498637961,-150.0,0.0005269,2]
[356961031,1743498637970,-2714.60454378,0.0005269,2]
[356961032,1743498637979,-167.4902408,0.00052767,120]
[356961033,1743498637989,-204.49190626,0.0005298,30]
[356961034,1743498637998,-167.4902408,0.00053342,120]
[356961035,1743498638009,-359.35,0.00053393,2]
[356961036,1743498638019,-3000.0,0.000535,120]
[356961038,1743498638028,-328.66,0.000536,14]
[356961040,1743498638037,-4264.42,0.000538,2]
[356961042,1743498638048,-167.4902408,0.00053918,120]
[356961044,1743498638057,-1000.0,0.00054061,120]
[356961046,1743498638066,-692.17250822,0.00054235,30]
[356961048,1743498638076,-164.93,0.00054384,120]
[356961050,1743498638085,-152.87,0.00054384,120]
[356961052,1743498638094,-311.0,0.00054418,30]
[356961054,1743498638104,-3995.96402,0.000545,120]
[356961056,1743498638113,-4264.42,0.000546,2]
[356961058,1743498638123,-2252.3833,0.00054684,2]
[356961060,1743498638134,-1751.7051,0.00054684,2]
[356961062,1743498638143,-431.0956,0.00054684,2]
[356961064,1743498638153,-1000.0,0.00054684,2]
[356961066,1743498638162,-529.3274,0.00054694,2]
[356961068,1743498638172,-500.0,0.00054694,2]
[356961070,1743498638181,-1341.17573984,0.00054694,2]
[356961072,1743498638197,-5856.89726016,0.00054694,2]
[356961074,1743498638207,-2131.6154,0.00054694,2]
[356961076,1743498638216,-1186.73858797,0.00054694,15]
[356961078,1743498638226,-561.5503968,0.00054694,80]
[356961080,1743498638235,-548.7374,0.00054694,120]
[356961082,1743498638245,-71.46095507,0.00054784,30]
[356961084,1743498638256,-1029.22745879,0.00054784,30]
[356961087,1743498638268,-841.76158614,0.00054784,30]
[356961089,1743498638277,-206.22764761,0.00054794,62]
[356961091,1743498638287,-1268.64955186,0.00054794,62]
[356961093,1743498638297,-500.0,0.00054794,120]
[356961095,1743498638306,-500.0,0.00054794,120]
[356961097,1743498638316,-500.0,0.00054794,120]
[356961099,1743498638325,-762.68,0.00054794,120]
[356961101,1743498638336,-500.0,0.00054794,120]
[356961103,1743498638345,-547.11268965,0.00054794,120]
[356961105,1743498638354,-500.0,0.00054794,120]
[356961106,1743498638364,-500.0,0.00054794,120]
[356961107,1743498638373,-500.0,0.00054794,120]
[356961108,1743498638382,-500.0,0.00054794,120]
[356961109,1743498638392,-500.0,0.00054794,120]
[356961110,1743498638402,-190.58403666,0.00054794,120]
[356961111,1743498638411,-389.74225549,0.00054794,120]
[356961112,1743498638421,-500.0,0.00054794,120]
[356961113,1743498638430,-1000.0,0.00054794,120]
[356961114,1743498638439,-500.0,0.00054794,120]
[356961115,1743498638449,-500.0,0.00054794,120]
[356961116,1743498638459,-312.91,0.00054794,120]
[356961117,1743498638468,-500.0,0.00054794,120]
[356961118,1743498638478,-500.0,0.00054794,120]
[356961119,1743498638488,-500.0,0.00054794,120]
[356961120,1743498638497,-500.0,0.00054794,120]
[356961121,1743498638507,-207.09042438,0.00054794,120]
[356961122,1743498638516,-500.0,0.00054794,120]
[356961123,1743498638525,-500.0,0.00054794,2]
[356961124,1743498638535,-500.0,0.00054794,120]
[356961125,1743498638544,-500.0,0.00054794,120]
[356961126,1743498638554,-500.0,0.00054794,120]
[356961127,1743498638563,-500.0,0.00054794,120]
[356961128,1743498638572,-500.0,0.00054794,120]
[356961129,1743498638582,-500.0,0.00054794,120]
[356961130,1743498638592,-500.0,0.00054794,120]
[356961131,1743498638601,-521.61446667,0.00054794,120]
[356961132,1743498638611,-500.0,0.00054794,120]
[356961133,1743498638620,-500.0,0.00054794,120]
[356961134,1743498638630,-1299.96,0.00054794,12]
[356961135,1743498638640,-587.02567472,0.00054794,120]
[356961136,1743498638649,-500.0,0.00054794,120]
[356961137,1743498638659,-500.0,0.00054794,120]
[356961138,1743498638668,-500.0,0.00054794,120]
[356961139,1743498638678,-500.0,0.00054794,120]
[356961140,1743498638688,-500.0,0.00054794,120]
[356961141,1743498638697,-150.0,0.00054794,120]
[356961142,1743498638706,-1613.54,0.00054794,30]
[356961143,1743498638715,-500.0,0.00054794,120]
[356961144,1743498638724,-256.83016346,0.00054794,120]
[356961145,1743498638733,-500.0,0.00054794,120]
[356961146,1743498638743,-500.0,0.00054794,120]
[356961147,1743498638752,-500.0,0.00054794,120]
[356961148,1743498638762,-500.0,0.00054794,120]
[356961149,1743498638771,-500.0,0.00054794,120]
[356961150,1743498638780,-162.1929535,0.00054794,120]
[356961151,1743498638789,-500.0,0.00054794,120]
[356961152,1743498638798,-500.0,0.00054794,120]
[356961153,1743498638807,-500.0,0.00054794,120]
[356961154,1743498638817,-500.0,0.00054794,120]
[356961155,1743498638826,-500.0,0.00054794,120]
[356961156,1743498638835,-500.0,0.00054794,120]
[356961157,1743498638845,-566.24,0.00054794,120]
[356961158,1743498638854,-500.0,0.00054794,120]
[356961159,1743498638863,-6189.59,0.00054794,120]
[356961160,1743498638875,-569.36,0.00054794,120]
[356961161,1743498638885,-500.0,0.00054794,120]
[356961162,1743498638895,-500.0,0.00054794,120]
[356961163,1743498638904,-500.0,0.00054794,120]
[356961164,1743498638915,-500.0,0.00054794,120]
[356961165,1743498638924,-504.94449657,0.00054794,120]
[356961166,1743498638934,-500.0,0.00054794,120]
[356961167,1743498638943,-500.0,0.00054794,120]
[356961168,1743498638952,-601.51,0.00054794,120]
[356961169,1743498638962,-500.0,0.00054794,120]
[356961170,1743498638971,-500.0,0.00054794,120]
[356961171,1743498638981,-500.0,0.00054794,120]
[356961172,1743498638990,-558.1172104,0.00054794,120]
[356961173,1743498638999,-500.0,0.00054794,120]
[356961174,1743498639009,-500.0,0.00054794,120]
[356961175,1743498639019,-500.0,0.00054794,120]
[356961176,1743498639028,-500.0,0.00054794,120]
[356961177,1743498639037,-290.16,0.00054794,7]
[356961178,1743498639047,-500.0,0.00054794,120]
[356961179,1743498639057,-500.0,0.00054794,120]
[356961180,1743498639066,-500.0,0.00054794,120]
[356961181,1743498639076,-500.0,0.00054794,120]
[356961182,1743498639086,-500.0,0.00054794,120]
[356961183,1743498639098,-578.46,0.00054794,120]
[356961184,1743498639108,-500.0,0.00054794,120]
[356961185,1743498639118,-500.0,0.00054794,120]
[356961186,1743498639127,-183.66337538,0.00054794,120]
[356961187,1743498639138,-500.0,0.00054794,120]
[356961188,1743498639147,-579.53,0.00054794,120]
[356961189,1743498639157,-500.0,0.00054794,120]
[356961190,1743498639167,-500.0,0.00054794,120]
[356961191,1743498639176,-500.0,0.00054794,120]
[356961192,1743498639186,-500.0,0.00054794,120]
[356961193,1743498639196,-500.0,0.00054794,120]
[356961194,1743498639206,-500.0,0.00054794,120]
[356961195,1743498639215,-500.0,0.00054794,120]
[356961196,1743498639225,-2201.08,0.00054794,120]
[356961197,1743498639235,-500.0,0.00054794,120]
[356961198,1743498639245,-500.0,0.00054794,7]
[356961199,1743498639255,-500.0,0.00054794,120]
[356961200,1743498639264,-500.0,0.00054794,120]
[356961201,1743498639274,-500.0,0.00054794,120]
[356961202,1743498639283,-516.40964693,0.00054794,120]
[356961203,1743498639293,-500.0,0.00054794,120]
[356961204,1743498639303,-500.0,0.00054794,120]
[356961205,1743498639312,-500.0,0.00054794,120]
[356961206,1743498639322,-500.0,0.00054794,120]
[356961207,1743498639332,-62869.05,0.00054794,7]
[356961208,1743498639343,-248.06709156,0.00054794,120]
[356961209,1743498639352,-500.0,0.00054794,120]
[356961210,1743498639362,-1343.29,0.00054794,2]
[356961211,1743498639373,-256.32091802,0.00054794,120]
[356961212,1743498639382,-500.0,0.00054794,120]
[356961213,1743498639391,-500.0,0.00054794,120]
[356961214,1743498639400,-491.25865761,0.00054794,120]
[356961215,1743498639410,-500.0,0.00054794,120]
[356961217,1743498639420,-1784.02,0.00054794,120]
[356961219,1743498639429,-500.0,0.00054794,120]
[356961221,1743498639439,-500.0,0.00054794,120]
[356961222,1743498639449,-500.0,0.00054794,120]
[356961223,1743498639458,-500.0,0.00054794,120]
[356961224,1743498639468,-500.0,0.00054794,120]
[356961225,1743498639477,-500.0,0.00054794,120]
[356961226,1743498639487,-500.0,0.00054794,120]
[356961227,1743498639497,-500.0,0.00054794,120]
[356961228,1743498639507,-500.0,0.00054794,120]
[356961229,1743498639516,-577.75,0.00054794,120]
[356961230,1743498639526,-500.0,0.00054794,120]
[356961231,1743498639535,-500.0,0.00054794,120]
[356961232,1743498639545,-500.0,0.00054794,120]
[356961233,1743498639685,-500.0,0.00054794,120]
[356961234,1743498639695,-500.0,0.00054794,120]
[356961235,1743498639705,-719.39,0.00054794,2]
[356961236,1743498639715,-500.0,0.00054794,120]
[356961237,1743498639725,-500.0,0.00054794,120]
[356961238,1743498639734,-500.0,0.00054794,120]
[356961239,1743498639744,-500.0,0.00054794,120]
[356961240,1743498639754,-500.0,0.00054794,120]
[356961241,1743498639763,-500.0,0.00054794,2]
[356961242,1743498639773,-500.0,0.00054794,120]
[356961243,1743498639783,-500.0,0.00054794,120]
[356961244,1743498639792,-500.0,0.00054794,120]
[356961245,1743498639802,-500.0,0.00054794,120]
[356961246,1743498639812,-500.0,0.00054794,120]
[356961247,1743498639821,-313.91960123,0.00054794,120]
[356961248,1743498639830,-500.0,0.00054794,100]
[356961249,1743498639841,-500.0,0.00054794,120]
[356961250,1743498639850,-637.4916209,0.00054794,120]
[356961251,1743498639860,-500.0,0.00054794,120]
[356961252,1743498639871,-311.0,0.00054979,30]
[356961253,1743498639883,-494.64184014,0.00055242,27]
[356961254,1743498639892,-173.01561855,0.00055242,15]
[356961255,1743498639902,-1186.73858797,0.00055272,15]
[356961256,1743498639911,-500.0,0.00055331,2]
[356961257,1743498639922,-57859.4738926,0.00055332,4]
[356961258,1743498639932,-500.0,0.00055342,120]
[356961259,1743498639942,-453.6822606,0.00055342,120]
[356961260,1743498639952,-500.0,0.00055342,120]
[356961261,1743498639964,-762.68,0.00055342,120]
[356961262,1743498639974,-500.0,0.00055342,120]
[356961263,1743498639983,-500.0,0.00055342,120]
[356961264,1743498639993,-500.0,0.00055342,120]
[356961265,1743498640002,-500.0,0.00055342,120]